fUSD/lending_fUSD_20260107
["ID","MTS","AMOUNT","RATE_DAILY","PERIOD"]
[400770304,1767823126295,-604.94804546,0.00014219,2]
[400770305,1767823128321,-192.03704288,0.00014219,2]
[400770306,1767823133695,-207.44371838,0.00014219,2]
[400770307,1767823135729,-237.95861467,0.00014219,2]
[400770308,1767823137809,-431.1772499,0.00014219,2]
[400770309,1767823138931,-327.35102196,0.00014219,2]
[400770310,1767823141957,-318.99052199,0.00014219,2]
[400770311,1767823143477,-152.44,0.00014219,2]
[400770312,1767823149434,-164.67,0.00014219,2]
[400770313,1767823152132,-358.76470126,0.00014219,2]
[400770314,1767823155285,-442.01358389,0.00014219,2]
[400770315,1767823158228,-689.01438501,0.00014219,2]
[400770316,1767823160762,-300.0,0.00014219,2]
[400770317,1767823165736,813.7435,0.00014197,2]
[400770318,1767823172164,1221.3622,0.00014197,2]
[400770319,1767823204180,-4778.38841113,0.00014219,2]
[400770320,1767823207277,-443.23317774,0.00014219,2]
[400770321,1767823207307,-299.19084191,0.00014219,2]
[400770322,1767823207336,-267.0,0.00014219,2]
[400770323,1767823207366,-195.0,0.00014257,2]
[400770324,1767823207395,-300.0,0.00014257,2]
[400770325,1767823207425,-1200.0,0.00014295,2]
[400770326,1767823207454,-500.0,0.00014296,2]
[400770327,1767823207483,-500.0,0.00014296,2]
[400770328,1767823207512,-300.0,0.00014296,2]
[400770329,1767823207542,-150.0,0.00014296,2]
[400770330,1767823207571,-500.0,0.00014296,2]
[400770331,1767823207602,-191.1619607,0.00014296,2]
[400770332,1767823210759,-308.8380393,0.00014296,2]
[400770333,1767823210794,-500.0,0.00014296,2]
[400770334,1767823212081,-7131.49028035,0.00014297,2]
[400770335,1767823216101,-500.0,0.00014296,2]
[400770336,1767823216136,-196.37323195,0.00014296,2]
[400770337,1767823216247,-8607.2635361,0.00014297,2]
[400770338,1767823294315,183.396,0.00014011,2]
[400770339,1767823294353,2474.365,0.00014011,2]
[400770341,1767823334340,2500.0,0.00014197,2]
[400770346,1767823343147,-151.0,0.00014288,2]
[400770347,1767823343178,-151.0,0.00014288,2]
[400770348,1767823343207,-151.0,0.00014288,2]
[400770349,1767823343238,-151.0,0.00014288,2]
[400770350,1767823343271,-151.0,0.00014288,2]
[400770351,1767823343301,-151.0,0.00014288,2]
[400770352,1767823343332,-151.0,0.00014288,2]
[400770353,1767823343363,-151.0,0.00014288,2]
[400770354,1767823343395,-151.0,0.00014288,2]
[400770355,1767823343426,-151.0,0.00014288,2]
[400770356,1767823343456,-151.0,0.00014288,2]
[400770357,1767823343488,-151.0,0.00014288,2]
[400770358,1767823343517,-151.0,0.00014288,2]
[400770359,1767823343548,-151.0,0.00014288,2]
[400770360,1767823343578,-151.0,0.00014288,2]
[400770361,1767823343606,-200.0,0.00014288,2]
[400770362,1767823343638,-151.0,0.00014288,2]
[400770363,1767823343668,-151.0,0.00014288,2]
[400770364,1767823343698,-500.0,0.00014288,2]
[400770365,1767823343728,-151.0,0.00014288,2]
[400770366,1767823343758,-151.0,0.00014288,2]
[400770367,1767823343788,-151.0,0.00014288,2]
[400770368,1767823343817,-151.0,0.00014288,2]
[400770369,1767823343846,-223.81208261,0.00014288,2]
[400770370,1767823343875,-300.0,0.00014295,2]
[400770371,1767823343906,-500.0,0.00014296,2]
[400770372,1767823344072,-500.0,0.00014296,2]
[400770373,1767823344102,-581.02591241,0.00014296,2]
[400770374,1767823344133,-500.0,0.00014296,2]
[400770375,1767823344163,-500.0,0.00014296,2]
[400770376,1767823344193,-500.0,0.00014296,2]
[400770377,1767823344222,-500.0,0.00014296,2]
[400770378,1767823344251,-500.0,0.00014296,2]
[400770379,1767823344280,-500.0,0.00014296,2]
[400770380,1767823344309,-500.0,0.00014296,2]
[400770381,1767823344338,-337.95817518,0.00014296,2]
[400770382,1767823344408,-162.04182482,0.00014296,2]
[400770383,1767823344438,-500.0,0.00014296,2]
[400770384,1767823344468,-500.0,0.00014296,2]
[400770385,1767823344497,-500.0,0.00014296,2]
[400770386,1767823344526,-500.0,0.00014296,2]
[400770387,1767823344556,-500.0,0.00014296,2]
[400770388,1767823344588,-500.0,0.00014296,2]
[400770389,1767823344618,-500.0,0.00014296,2]
[400770390,1767823344649,-614.95924296,0.00014296,2]
[400770391,1767823348772,-6758.60752902,0.00014297,2]
[400770393,1767823348888,-10000.01,0.00014297,2]
[400770395,1767823349131,-10000.01,0.00014297,2]
[400770396,1767823350406,-374.64362057,0.00014197,2]
[400770397,1767823350416,-9625.36637943,0.00014297,2]
[400770398,1767823350544,-10000.01,0.00014297,2]
[400770399,1767823353599,-200.0,0.00014288,2]
[400770400,1767823353655,-9800.01,0.00014297,2]
[400770401,1767823353763,-10000.01,0.00014297,2]
[400770402,1767823355821,-10000.01,0.00014297,2]
[400770403,1767823356237,-200.0,0.00014297,2]
[400770404,1767823356257,-9600.01,0.00014297,2]
[400770405,1767823356300,-10000.01,0.00014297,2]
[400770406,1767823356352,-10000.01,0.00014297,2]
[400770407,1767823356406,-10000.01,0.00014297,2]
[400770408,1767823356465,-10000.01,0.00014297,2]
[400770409,1767823363820,-218.65304711,0.00014288,2]
[400770410,1767823363862,-9562.70390578,0.00014297,2]
[400770415,1767823369890,-211.25135994,0.00014197,2]
[400770416,1767823369996,-9577.50728012,0.00014297,2]
[400770418,1767823396983,8178.35630169,0.00014197,2]
[400770419,1767823407100,1821.65369831,0.00014197,2]
[400770420,1767823407128,8178.35630169,0.00014197,2]
[400770427,1767823477566,1821.65369831,0.00014197,2]
[400770428,1767823477591,1175.25270169,0.00014197,2]
[400770429,1767823483800,2500.0,0.00014197,2]
[400770430,1767823500873,6324.75729831,0.00014197,2]
[400770431,1767823500897,6640.98822494,0.00014197,2]
[400770432,1767823529103,10000.01,0.00013522,2]
[400770433,1767823529128,737.67,0.00013522,2]
[400770470,1767823626870,490.22842754,0.00014197,2]
[400770471,1767823629957,317.41,0.00013516,2]
[400770472,1767823632979,2500.0,0.00014197,2]
[400770473,1767823647627,209.35465997,0.00014197,2]
[400770476,1767823650929,2619.69,0.00013506,2]
[400770479,1767823658376,1100.0,0.00013859,2]
[400770486,1767823708216,849.0,0.0001415,2]
[400770487,1767823708260,500.0,0.0001415,2]
[400770488,1767823708323,150.0,0.0001415,2]
[400770489,1767823708552,526.65691249,0.00014205,2]
[400770490,1767823708582,322.34308751,0.00014205,2]
[400770491,1767823708645,200.0,0.00014205,2]
[400770492,1767823709000,500.0,0.00014205,2]
[400770493,1767823709964,567.0,0.0001415,2]
[400770494,1767823710112,567.0,0.00014205,2]
[400770495,1767823720645,8866.01,0.00014197,2]
[400770496,1767823720671,10000.01,0.00014197,2]
[400770497,1767823720696,10000.01,0.00014197,2]
[400770498,1767823720721,10000.01,0.00014197,2]
[400770499,1767823720746,10000.01,0.00014197,2]
[400770500,1767823720770,10000.01,0.00014197,2]
[400770501,1767823720795,10000.01,0.00014197,2]
[400770502,1767823720820,10000.01,0.00014197,2]
[400770503,1767823720845,10000.01,0.00014197,2]
[400770504,1767823720868,10000.01,0.00014197,2]
[400770505,1767823721729,-166.66,0.00014197,2]
[400770506,1767823731596,-242.0811956,0.00014197,2]
[400770507,1767823734617,-212.515,0.00014197,2]
[400770508,1767823738274,-621.67660694,0.00014197,2]
[400770509,1767823739460,-2336.67868755,0.00014197,2]
[400770510,1767823739790,-10000.01,0.00014197,2]
[400770511,1767823740505,-10000.01,0.00014197,2]
[400770512,1767823740659,-10000.01,0.00014197,2]
[400770513,1767823740715,-10000.01,0.00014197,2]
[400770514,1767823740927,-351.97246794,0.00014197,2]
[400770516,1767823751674,-150.0,0.00014196,2]
[400770517,1767823751797,-9700.01,0.00014197,2]
[400770527,1767823760028,-10000.01,0.00014197,2]
[400770531,1767823761332,-10000.01,0.00014197,2]
[400770532,1767823761493,-10000.01,0.00014197,2]
[400770533,1767823761967,-203.43128444,0.00014197,2]
[400770534,1767823764798,-10000.01,0.00014197,2]
[400770535,1767823772731,1852.42,0.00013443,2]
[400770536,1767823791308,209.35465995,0.00014097,2]
[400770540,1767823807461,413.24859756,5e-05,2]
[400770542,1767823826051,-150.0,0.00014122,2]
[400770543,1767823826074,-150.0,0.00014122,2]
[400770544,1767823826097,-28.1886623,0.00014122,2]
[400770545,1767823829179,-471.8113377,0.00014122,2]
[400770546,1767823829210,-150.0,0.00014177,2]
[400770547,1767823829241,-500.0,0.00014177,2]
[400770548,1767823829274,-300.0,0.00014196,2]
[400770549,1767823829303,-1200.0,0.00014196,2]
[400770550,1767823829334,-267.0,0.00014196,2]
[400770551,1767823829363,-1138.62472585,0.00014196,2]
[400770552,1767823830302,-9470.12461539,0.00014197,2]
[400770553,1767823830364,-10000.01,0.00014197,2]
[400770554,1767823830599,-10000.01,0.00014197,2]
[400770555,1767823830747,-10000.01,0.00014197,2]
[400770556,1767823830931,-10000.01,0.00014197,2]
[400770557,1767823830989,-10000.01,0.00014197,2]
[400770558,1767823831082,-10000.01,0.00014197,2]
[400770559,1767823831168,-10000.01,0.00014197,2]
[400770563,1767823832093,-951.01337264,0.00014197,2]
[400770565,1767823832140,-6434.7960043,0.00014197,2]
[400770566,1767823832153,-9750.43756616,0.00014197,2]
[400770568,1767823832216,-1887.52207154,0.00014197,2]
[400770570,1767823832272,-32024.88086876,0.00014197,2]
[400770577,1767823832806,-16612.28632917,0.00014197,2]
[400770579,1767823832914,-10000.01,0.00014197,2]
[400770592,1767823838003,-650167.65392957,0.00014197,2]
[400770593,1767823838014,-3334.2467,0.00014197,2]
[400770594,1767823838024,-50132.6519,0.00014197,2]
[400770595,1767823838035,-2500.0,0.00014197,2]
[400770596,1767823838046,-6703.9439,0.00014197,2]
[400770597,1767823838056,-236.5096,0.00014197,2]
[400770598,1767823838067,-693.0,0.00014218,2]
[400770599,1767823838078,-150.0,0.00014218,2]
[400770600,1767823838090,-150.0,0.00014218,2]
[400770601,1767823838100,-500.0,0.00014218,2]
[400770602,1767823838111,-150.0,0.00014218,2]
[400770603,1767823838122,-151.66178001,0.00014218,2]
[400770604,1767823838132,-500.0,0.00014218,2]
[400770605,1767823838143,-200.0,0.00014232,2]
[400770606,1767823838153,-500.0,0.00014232,2]
[400770607,1767823838164,-4475.9768,0.00014247,2]
[400770608,1767823838174,-849.0,0.0001426,2]
[400770609,1767823838184,-500.0,0.0001426,2]
[400770610,1767823838195,-567.0,0.0001426,2]
[400770611,1767823838205,-693.0,0.00014273,2]
[400770612,1767823838215,-210.07522356,0.00014273,2]
[400770613,1767823838226,-150.0,0.00014273,2]
[400770614,1767823838237,-500.0,0.00014273,2]
[400770615,1767823838247,-150.0,0.00014273,2]
[400770616,1767823838260,-500.0,0.00014273,2]
[400770617,1767823838271,-500.0,0.00014286,2]
[400770618,1767823838282,-18127.9524875,0.00014287,2]
[400770619,1767823838293,-500.0,0.00014287,2]
[400770620,1767823838303,-500.0,0.00014287,2]
[400770621,1767823838314,-500.0,0.00014287,2]
[400770622,1767823838325,-500.0,0.00014287,2]
[400770623,1767823838339,-500.0,0.00014287,2]
[400770624,1767823838353,-500.0,0.00014287,2]
[400770625,1767823838366,-500.0,0.00014287,2]
[400770626,1767823838378,-500.0,0.00014287,2]
[400770627,1767823838388,-500.0,0.00014287,2]
[400770628,1767823838399,-500.0,0.00014287,2]
[400770629,1767823838409,-500.0,0.00014287,2]
[400770630,1767823838420,-500.0,0.00014287,2]
[400770631,1767823838430,-318.43777181,0.00014287,2]
[400770632,1767823838441,-500.0,0.00014287,2]
[400770633,1767823838451,-500.0,0.00014287,2]
[400770634,1767823838462,-500.0,0.00014287,2]
[400770635,1767823838473,-500.0,0.00014287,2]
[400770636,1767823838483,-500.0,0.00014287,2]
[400770637,1767823838493,-500.0,0.00014287,2]
[400770638,1767823838505,-500.0,0.00014287,2]
[400770639,1767823838516,-500.0,0.00014287,2]
[400770640,1767823838527,-500.0,0.00014287,2]
[400770641,1767823838538,-500.0,0.00014287,2]
[400770642,1767823838548,-288.95289268,0.00014287,2]
[400770643,1767823838558,-500.0,0.00014287,2]
[400770644,1767823838573,-500.0,0.00014287,2]
[400770645,1767823838584,-500.0,0.00014287,2]
[400770646,1767823838595,-500.0,0.00014287,2]
[400770647,1767823838605,-500.0,0.00014287,2]
[400770648,1767823838616,-500.0,0.00014287,2]
[400770649,1767823838627,-500.0,0.00014287,2]
[400770650,1767823838637,-500.0,0.00014287,2]
[400770651,1767823838649,-500.0,0.00014287,2]
[400770652,1767823838659,-500.0,0.00014287,2]
[400770653,1767823838671,-500.0,0.00014287,2]
[400770654,1767823838681,-500.0,0.00014287,2]
[400770655,1767823838692,-500.0,0.00014288,2]
[400770656,1767823838703,-500.0,0.00014288,2]
[400770657,1767823839038,-288.27990329,0.00014288,2]
[400770658,1767823839061,-500.0,0.00014288,2]
[400770659,1767823839072,-200.0,0.00014288,2]
[400770660,1767823839083,-151.0,0.00014288,2]
[400770661,1767823839095,-151.0,0.00014288,2]
[400770662,1767823839106,-151.0,0.00014288,2]
[400770663,1767823839117,-151.0,0.00014288,2]
[400770664,1767823839128,-151.0,0.00014288,2]
[400770665,1767823839139,-151.0,0.00014288,2]
[400770666,1767823839149,-151.0,0.00014288,2]
[400770667,1767823839159,-151.0,0.00014288,2]
[400770668,1767823839170,-151.0,0.00014288,2]
[400770669,1767823839180,-151.0,0.00014288,2]
[400770670,1767823839192,-151.0,0.00014288,2]
[400770671,1767823839202,-1000.0,0.00014296,2]
[400770672,1767823839213,-500.0,0.00014296,2]
[400770673,1767823839224,-500.0,0.00014296,2]
[400770674,1767823839235,-420.4969783,0.00014296,2]
[400770675,1767823839246,-500.0,0.00014296,2]
[400770676,1767823839257,-500.0,0.00014296,2]
[400770677,1767823839268,-529.68631152,0.00014296,2]
[400770678,1767823839278,-500.0,0.00014296,2]
[400770679,1767823839290,-500.0,0.00014296,2]
[400770680,1767823839301,-500.0,0.00014296,2]
[400770681,1767823839312,-524.88501728,0.00014296,2]
[400770682,1767823839323,-500.0,0.00014296,2]
[400770683,1767823839334,-513.96214798,0.00014296,2]
[400770684,1767823839345,-500.0,0.00014296,2]
[400770685,1767823839355,-500.0,0.00014296,2]
[400770686,1767823839368,-500.0,0.00014296,2]
[400770687,1767823839382,-500.0,0.00014296,2]
[400770688,1767823839399,-500.0,0.00014296,2]
[400770689,1767823839409,-534.92861577,0.00014296,2]
[400770690,1767823839419,-500.0,0.00014297,2]
[400770691,1767823839429,-200.0,0.00014297,2]
[400770692,1767823839439,-1268.16296255,0.00014297,2]
[400770693,1767823839449,-200.0,0.00014297,2]
[400770694,1767823839459,-226.22576151,0.00014297,2]
[400770695,1767823839469,-151.0,0.00014297,2]
[400770696,1767823839480,-200.0,0.00014297,2]
[400770697,1767823839492,-849.0,0.00014314,2]
[400770698,1767823839503,-500.0,0.00014314,2]
[400770699,1767823839513,-567.0,0.00014314,2]
[400770700,1767823839523,-693.0,0.00014328,2]
[400770701,1767823839532,-150.0,0.00014328,2]
[400770702,1767823839542,-500.0,0.00014328,2]
[400770703,1767823839552,-150.0,0.00014328,2]
[400770704,1767823839562,-500.0,0.00014328,2]
[400770705,1767823839576,-500.0,0.00014341,2]
[400770706,1767823839586,-849.0,0.00014369,2]
[400770707,1767823839596,-500.0,0.00014369,2]
[400770708,1767823839605,-567.0,0.00014369,2]
[400770709,1767823839618,-693.0,0.00014382,2]
[400770710,1767823839629,-200.0,0.00014382,2]
[400770711,1767823839639,-500.0,0.00014382,2]
[400770712,1767823839651,-179.16326783,0.00014382,2]
[400770713,1767823839662,-500.0,0.00014382,2]
[400770714,1767823839673,-500.0,0.00014396,2]
[400770715,1767823839685,-500.0,0.00014396,2]
[400770716,1767823839696,-500.0,0.00014396,2]
[400770717,1767823839708,-509.41321763,0.00014396,2]
[400770718,1767823839717,-500.0,0.00014396,2]
[400770719,1767823839727,-500.0,0.00014396,2]
[400770720,1767823839737,-500.0,0.00014396,2]
[400770721,1767823839747,-500.0,0.00014396,2]
[400770722,1767823839758,-500.0,0.00014396,2]
[400770723,1767823839767,-500.0,0.00014396,2]
[400770724,1767823839777,-500.0,0.00014396,2]
[400770725,1767823839786,-500.0,0.00014396,2]
[400770726,1767823839796,-300.32189939,0.00014396,2]
[400770727,1767823839806,-500.0,0.00014396,2]
[400770728,1767823839817,-500.0,0.00014396,2]
[400770729,1767823839828,-508.99338834,0.00014396,2]
[400770730,1767823839841,-500.0,0.00014396,2]
[400770731,1767823839851,-500.0,0.00014396,2]
[400770732,1767823839861,-500.0,0.00014396,2]
[400770733,1767823839870,-500.0,0.00014396,2]
[400770734,1767823839880,-500.0,0.00014396,2]
[400770735,1767823839891,-500.0,0.00014396,2]
[400770736,1767823839902,-283.51547018,0.00014396,2]
[400770737,1767823839912,-500.0,0.00014396,2]
[400770738,1767823839921,-1311.91,0.00014396,2]
[400770740,1767823839932,-500.0,0.00014396,2]
[400770742,1767823839942,-500.0,0.00014396,2]
[400770745,1767823839952,-500.0,0.00014396,2]
[400770747,1767823839966,-500.0,0.00014396,2]
[400770749,1767823839980,-500.0,0.00014396,2]
[400770750,1767823839989,-500.0,0.00014396,2]
[400770752,1767823839999,-500.0,0.00014396,2]
[400770754,1767823840009,-500.0,0.00014396,2]
[400770756,1767823840020,-849.0,0.00014424,2]
[400770758,1767823840030,-500.0,0.00014424,2]
[400770760,1767823840040,-567.0,0.00014424,2]
[400770762,1767823840049,-693.0,0.00014437,2]
[400770764,1767823840059,-500.0,0.00014437,2]
[400770766,1767823840068,-500.0,0.00014437,2]
[400770768,1767823840077,-200.0,0.0001444,2]
[400770770,1767823840086,-200.0,0.0001444,2]
[400770772,1767823840096,-200.0,0.0001444,2]
[400770774,1767823840105,-246.52,0.00014442,2]
[400770776,1767823840115,-500.0,0.00014451,2]
[400770778,1767823840124,-289.75,0.00014468,2]
[400770780,1767823840134,-849.0,0.00014479,2]
[400770782,1767823840143,-567.0,0.00014479,2]
[400770784,1767823840153,-25649.89,0.00014479,2]
[400770786,1767823840163,-3174.75,0.00014479,2]
[400770788,1767823840173,-150.99,0.00014479,2]
[400770790,1767823840182,-1178.51,0.00014479,2]
[400770792,1767823840192,-9999.99,0.00014479,2]
[400770794,1767823840202,-3687.07,0.00014479,2]
[400770796,1767823840212,-9999.99,0.00014479,2]
[400770798,1767823840222,-57097.28,0.00014479,2]
[400770800,1767823840231,-2095.06,0.00014479,2]
[400770802,1767823840241,-150.99,0.00014479,2]
[400770804,1767823840250,-4999.99,0.00014479,2]
[400770806,1767823840259,-42324.09,0.00014479,2]
[400770808,1767823840269,-1081.61,0.00014492,2]
[400770810,1767823840278,-693.0,0.00014492,2]
[400770812,1767823840288,-335.1109073,0.00014492,2]
[400770814,1767823840298,-500.0,0.00014492,2]
[400770816,1767823840309,-500.0,0.00014497,2]
[400770819,1767823840319,-401.45,0.00014498,2]
[400770820,1767823840329,-500.0,0.00014506,2]
[400770823,1767823840341,-849.0,0.00014534,2]
[400770825,1767823840350,-567.0,0.00014534,2]
[400770826,1767823840360,-693.0,0.00014547,2]
[400770829,1767823840369,-500.0,0.00014547,2]
[400770830,1767823840379,-500.0,0.0001456,2]
[400770832,1767823840388,-500.0,0.00014571,2]
[400770834,1767823840397,-3158.28,0.00014571,2]
[400770836,1767823840406,-500.0,0.00014578,2]
[400770838,1767823840415,-200.0,0.00014584,2]
[400770841,1767823840426,-200.0,0.00014584,2]
[400770843,1767823840435,-200.0,0.00014584,2]
[400770845,1767823840444,-1100.0,0.00014588,2]
[400770847,1767823840453,-849.0,0.00014588,2]
[400770848,1767823840464,-567.0,0.00014588,2]
[400770850,1767823840473,-693.0,0.00014602,2]
[400770852,1767823840483,-500.0,0.00014602,2]
[400770855,1767823840493,-2107.0,0.00014603,2]
[400770856,1767823840502,-500.0,0.00014615,2]
[400770860,1767823840511,-849.0,0.00014643,2]
[400770862,1767823840521,-567.0,0.00014643,2]
[400770864,1767823840531,-693.0,0.00014656,2]
[400770866,1767823840540,-500.0,0.00014656,2]
[400770868,1767823840549,-500.0,0.0001467,2]
[400770870,1767823840558,-1311.91,0.0001467,2]
[400770872,1767823840568,-849.0,0.00014698,2]
[400770873,1767823840581,-567.0,0.00014698,2]
[400770875,1767823840590,-500.0,0.00014698,2]
[400770877,1767823840600,-419.33594592,0.00014698,2]
[400770879,1767823840610,-500.0,0.00014698,2]
[400770881,1767823840620,-693.0,0.00014711,2]
[400770883,1767823840630,-500.0,0.00014711,2]
[400770885,1767823840639,-500.0,0.00014725,2]
[400770887,1767823840648,-200.0,0.0001473,2]
[400770889,1767823840657,-200.0,0.0001473,2]
[400770891,1767823840667,-849.0,0.00014753,2]
[400770893,1767823840676,-567.0,0.00014753,2]
[400770895,1767823840685,-433.87,0.00014755,2]
[400770897,1767823840695,-693.0,0.00014766,2]
[400770900,1767823840704,-500.0,0.00014766,2]
[400770901,1767823840713,-500.0,0.0001478,2]
[400770903,1767823840722,-849.0,0.00014808,2]
[400770905,1767823840732,-567.0,0.00014808,2]
[400770908,1767823840742,-693.0,0.00014821,2]
[400770909,1767823840751,-500.0,0.00014821,2]
[400770911,1767823840760,-974.67718795,0.00014833,2]
[400770914,1767823840769,-500.0,0.00014834,2]
[400770916,1767823840779,-500.0,0.00014836,2]
[400770917,1767823840788,-200.0,0.00014836,2]
[400770920,1767823840798,-500.0,0.00014845,2]
[400770922,1767823840810,-849.0,0.00014862,2]
[400770924,1767823840819,-567.0,0.00014862,2]
[400770925,1767823840830,-693.0,0.00014876,2]
[400770928,1767823840839,-500.0,0.00014876,2]
[400770929,1767823840849,-200.0,0.00014878,2]
[400770931,1767823840858,-200.0,0.00014878,2]
[400770933,1767823840868,-500.0,0.00014889,2]
[400770935,1767823840878,-849.0,0.00014917,2]
[400770938,1767823840889,-567.0,0.00014917,2]
[400770939,1767823840899,-693.0,0.0001493,2]
[400770942,1767823840909,-500.0,0.0001493,2]
[400770944,1767823840918,-500.0,0.00014944,2]
[400770946,1767823840928,-1311.91,0.00014944,2]
[400770948,1767823840937,-849.0,0.00014972,2]
[400770950,1767823840947,-567.0,0.00014972,2]
[400770951,1767823840956,-693.0,0.00014985,2]
[400770954,1767823840965,-406.89851448,0.00014985,2]
[400770956,1767823840975,-500.0,0.00014999,2]
[400770958,1767823840984,-849.0,0.00015027,2]
[400770960,1767823840993,-567.0,0.00015027,2]
[400770962,1767823841003,-693.0,0.0001504,2]
[400770964,1767823841013,-202.79963653,0.00015054,2]
[400770966,1767823841022,-1455.64956121,0.00015063,2]
[400770968,1767823841031,-500.0,0.00015068,2]
[400770970,1767823841040,-500.0,0.00015073,2]
[400770972,1767823841049,-169.74559645,0.00015073,2]
[400770974,1767823841059,-500.0,0.00015073,2]
[400770976,1767823841068,-556.0741427,0.00015073,2]
[400770978,1767823841077,-552.50710843,0.00015073,2]
[400770980,1767823841087,-500.0,0.00015073,2]
[400770982,1767823841096,-502.16378022,0.00015073,2]
[400770984,1767823841105,-210.44596134,0.00015073,2]
[400770986,1767823841114,-500.0,0.00015073,2]
[400770988,1767823841123,-500.0,0.00015073,2]
[400770990,1767823841133,-411.91622264,0.00015073,2]
[400770991,1767823841142,-500.0,0.00015073,2]
[400770993,1767823841152,-536.66734105,0.00015073,2]
[400770995,1767823841162,-500.0,0.00015073,2]
[400770998,1767823841171,-500.0,0.00015073,2]
[400771000,1767823841180,-500.0,0.00015073,2]
[400771002,1767823841194,-500.0,0.00015073,2]
[400771004,1767823841203,-500.0,0.00015073,2]
[400771006,1767823841211,-500.0,0.00015073,2]
[400771008,1767823841220,-161.8794398,0.00015073,2]
[400771010,1767823841229,-500.0,0.00015073,2]
[400771012,1767823841239,-500.0,0.00015073,2]
[400771014,1767823841248,-500.0,0.00015073,2]
[400771016,1767823841257,-500.0,0.00015073,2]
[400771018,1767823841268,-413.08976684,0.00015073,2]
[400771020,1767823841277,-500.0,0.00015073,2]
[400771022,1767823841287,-500.0,0.00015073,2]
[400771024,1767823841296,-500.0,0.00015073,2]
[400771026,1767823841306,-849.0,0.00015082,2]
[400771028,1767823841315,-567.0,0.00015082,2]
[400771030,1767823841325,-693.0,0.00015095,2]
[400771032,1767823841334,-500.0,0.00015119,2]
[400771034,1767823841343,-151.0,0.00015121,2]
[400771036,1767823841352,-151.0,0.00015121,2]
[400771038,1767823841361,-500.0,0.00015123,2]
[400771040,1767823841371,-849.0,0.00015136,2]
[400771042,1767823841380,-567.0,0.00015136,2]
[400771044,1767823841389,-693.0,0.0001515,2]
[400771046,1767823841398,-500.0,0.00015178,2]
[400771048,1767823841407,-849.0,0.00015191,2]
[400771050,1767823841416,-567.0,0.00015191,2]
[400771052,1767823841426,-693.0,0.00015204,2]
[400771054,1767823841435,-1081.61,0.00015216,2]
[400771056,1767823841444,-1311.91,0.00015218,2]
[400771058,1767823841453,-500.0,0.00015232,2]
[400771060,1767823841462,-849.0,0.00015246,2]
[400771062,1767823841471,-567.0,0.00015246,2]
[400771064,1767823841481,-693.0,0.00015259,2]
[400771066,1767823841491,-500.0,0.00015287,2]
[400771068,1767823841500,-849.0,0.00015301,2]
[400771070,1767823841509,-567.0,0.00015301,2]
[400771072,1767823841518,-401.45,0.00015304,2]
[400771074,1767823841528,-693.0,0.00015314,2]
[400771076,1767823841537,-255.0,0.00015317,2]
[400771078,1767823841546,-200.0,0.00015319,2]
[400771080,1767823841556,-521.47480439,0.00015342,2]
[400771082,1767823841566,-849.0,0.00015355,2]